fUSD/lending_fUSD_20251014
["ID","MTS","AMOUNT","RATE_DAILY","PERIOD"]
[391257981,1760443846385,-500.0,0.00019726,2]
[391257983,1760443846394,-500.0,0.00019726,2]
[391257985,1760443846405,-500.0,0.00019726,2]
[391257987,1760443846415,-500.0,0.00019726,2]
[391257989,1760443846425,-1251.26,0.00019726,2]
[391257990,1760443846434,-500.0,0.00019726,2]
[391257992,1760443846443,-500.0,0.00019726,2]
[391257994,1760443846452,-831.81,0.00019726,2]
[391257996,1760443846462,-500.0,0.00019726,2]
[391257998,1760443846471,-500.0,0.00019726,2]
[391258000,1760443846481,-1140.15,0.00019726,2]
[391258002,1760443846490,-500.0,0.00019726,2]
[391258004,1760443846500,-577.62,0.00019726,2]
[391258006,1760443846509,-500.0,0.00019726,2]
[391258008,1760443846517,-560.41,0.00019726,2]
[391258010,1760443846526,-500.0,0.00019726,2]
[391258012,1760443846535,-517.42982687,0.00019726,2]
[391258014,1760443846544,-500.0,0.00019726,2]
[391258015,1760443846553,-500.0,0.00019726,2]
[391258016,1760443846562,-668.47,0.00019726,2]
[391258017,1760443846573,-2040.42,0.00019726,2]
[391258018,1760443846583,-500.0,0.00019726,2]
[391258019,1760443846591,-500.0,0.00019726,2]
[391258020,1760443846601,-500.0,0.00019726,2]
[391258021,1760443846611,-500.0,0.00019726,2]
[391258022,1760443846620,-570.41,0.00019726,2]
[391258023,1760443846629,-503.33,0.00019726,2]
[391258024,1760443846639,-500.0,0.00019726,2]
[391258025,1760443846650,-594.17,0.00019726,2]
[391258026,1760443846659,-763.55,0.00019726,2]
[391258027,1760443846669,-500.0,0.00019726,2]
[391258028,1760443846679,-1500.73,0.00019726,2]
[391258029,1760443846689,-1589.11,0.00019726,2]
[391258030,1760443846698,-586.52,0.00019726,2]
[391258031,1760443846707,-500.0,0.00019726,2]
[391258032,1760443846716,-500.0,0.00019726,2]
[391258033,1760443846726,-500.0,0.00019726,2]
[391258034,1760443846735,-500.0,0.00019726,2]
[391258035,1760443846745,-731.42,0.00019726,2]
[391258036,1760443846754,-500.0,0.00019726,2]
[391258037,1760443846763,-591.81,0.00019726,2]
[391258038,1760443846772,-500.0,0.00019726,2]
[391258039,1760443846782,-501.18,0.00019726,2]
[391258040,1760443846791,-530.96,0.00019726,2]
[391258041,1760443846800,-710.48,0.00019726,2]
[391258042,1760443846813,-500.0,0.00019726,2]
[391258043,1760443846822,-500.0,0.00019726,2]
[391258044,1760443846831,-500.0,0.00019726,2]
[391258045,1760443846841,-665.64,0.00019726,2]
[391258046,1760443846850,-500.0,0.00019726,2]
[391258047,1760443846859,-500.0,0.00019726,2]
[391258048,1760443846868,-500.0,0.00019726,2]
[391258049,1760443846878,-512.35,0.00019726,2]
[391258050,1760443846887,-500.0,0.00019726,2]
[391258051,1760443846896,-881.63,0.00019726,2]
[391258052,1760443846905,-599.17,0.00019726,2]
[391258053,1760443846914,-564.7,0.00019726,2]
[391258054,1760443846923,-500.0,0.00019726,2]
[391258055,1760443846932,-500.0,0.00019726,2]
[391258056,1760443846941,-500.0,0.00019726,2]
[391258057,1760443846951,-500.0,0.00019726,2]
[391258058,1760443846960,-705.69,0.00019726,2]
[391258059,1760443846969,-500.0,0.00019726,2]
[391258060,1760443846978,-500.0,0.00019726,2]
[391258061,1760443846987,-1162.23,0.00019726,2]
[391258062,1760443846996,-1150.41,0.00019726,2]
[391258063,1760443847005,-500.0,0.00019726,2]
[391258064,1760443847015,-535.76,0.00019726,2]
[391258065,1760443847026,-587.28,0.00019726,2]
[391258066,1760443847035,-500.0,0.00019726,2]
[391258067,1760443847045,-679.08,0.00019726,2]
[391258068,1760443847054,-500.0,0.00019726,2]
[391258069,1760443847066,-500.0,0.00019726,2]
[391258070,1760443847075,-500.0,0.00019726,2]
[391258071,1760443847084,-875.0,0.00019726,2]
[391258072,1760443847094,-500.0,0.00019726,2]
[391258073,1760443847105,-500.0,0.00019726,2]
[391258074,1760443847115,-500.0,0.00019726,2]
[391258075,1760443847124,-500.0,0.00019726,2]
[391258076,1760443847133,-500.0,0.00019726,2]
[391258077,1760443847144,-500.0,0.00019726,2]
[391258078,1760443847153,-500.0,0.00019726,2]
[391258079,1760443847162,-500.0,0.00019726,2]
[391258080,1760443847173,-724.9,0.00019726,2]
[391258081,1760443847183,-500.0,0.00019726,2]
[391258082,1760443847191,-500.0,0.00019726,2]
[391258083,1760443847201,-500.0,0.00019726,2]
[391258084,1760443847211,-500.0,0.00019726,2]
[391258085,1760443847220,-103980.98,0.00019726,2]
[391258086,1760443847229,-167.92,0.00019726,2]
[391258087,1760443847239,-411.04805496,0.000198,2]
[391258088,1760443847248,-166.66,0.00019826,2]
[391258089,1760443847258,-934.82740677,0.00019837,2]
[391258090,1760443847267,-151.0,0.00019857,2]
[391258091,1760443847276,-1431.11,0.0001986,2]
[391258092,1760443847285,-1029.86,0.0001986,2]
[391258093,1760443847294,-500.0,0.0001986,2]
[391258094,1760443847304,-2183.8,0.0001986,2]
[391258095,1760443847313,-1192.94,0.0001986,2]
[391258096,1760443847322,-500.0,0.0001986,2]
[391258097,1760443847331,-530.55,0.0001986,2]
[391258098,1760443847340,-1788.93,0.0001986,2]
[391258099,1760443847349,-1702.87,0.0001986,2]
[391258100,1760443847358,-1520.57,0.0001986,2]
[391258101,1760443847368,-1457.21,0.0001986,2]
[391258102,1760443847377,-500.0,0.0001986,2]
[391258103,1760443847387,-500.0,0.0001986,2]
[391258104,1760443847396,-1719.52,0.0001986,2]
[391258105,1760443847406,-500.0,0.0001986,2]
[391258106,1760443847415,-978.86,0.0001986,2]
[391258107,1760443847425,-831.0,0.0001986,2]
[391258108,1760443847436,-500.0,0.0001986,2]
[391258109,1760443847446,-3328.34,0.0001986,2]
[391258110,1760443847455,-500.0,0.0001986,2]
[391258111,1760443847466,-500.0,0.0001986,2]
[391258112,1760443847478,-683.66,0.0001986,2]
[391258113,1760443847488,-500.0,0.0001986,2]
[391258114,1760443847498,-208.98900052,0.0001986,2]
[391258115,1760443847507,-500.0,0.0001986,2]
[391258116,1760443847517,-500.0,0.0001986,2]
[391258117,1760443847526,-597.29,0.0001986,2]
[391258118,1760443847536,-500.0,0.0001986,2]
[391258119,1760443847544,-4582.95,0.0001986,2]
[391258120,1760443847554,-151.0,0.0001986,7]
[391258121,1760443847563,-151.0,0.0001986,7]
[391258122,1760443847573,-151.0,0.0001986,7]
[391258123,1760443847583,-151.0,0.0001986,7]
[391258124,1760443847592,-1387.82,0.0001986,2]
[391258125,1760443847602,-151.0,0.0001986,7]
[391258126,1760443847612,-151.0,0.0001986,7]
[391258127,1760443847621,-1599.070922,0.0001986,7]
[391258128,1760443847631,-574.92473347,0.00019861,2]
[391258129,1760443847641,-2000.0,0.00019861,2]
[391258130,1760443847651,-5802.79066852,0.00019861,2]
[391258131,1760443847662,-2000.0,0.00019861,2]
[391258132,1760443847674,-2000.0,0.00019861,2]
[391258133,1760443847686,-2000.0,0.00019861,2]
[391258134,1760443847699,-2000.0,0.00019861,2]
[391258135,1760443847710,-2000.0,0.00019861,2]
[391258136,1760443847720,-2000.0,0.00019861,2]
[391258137,1760443847730,-2000.0,0.00019861,2]
[391258138,1760443847740,-2000.0,0.00019861,2]
[391258139,1760443847750,-2000.0,0.00019861,2]
[391258140,1760443847760,-2000.0,0.00019861,2]
[391258141,1760443847770,-2000.0,0.00019861,2]
[391258142,1760443847779,-2000.0,0.00019861,2]
[391258143,1760443847789,-2000.0,0.00019861,2]
[391258144,1760443847798,-2000.0,0.00019861,2]
[391258145,1760443847811,-2000.0,0.00019861,2]
[391258146,1760443847820,-2000.0,0.00019861,2]
[391258147,1760443847830,-2000.0,0.00019861,2]
[391258148,1760443847839,-2000.0,0.00019861,2]
[391258149,1760443847849,-2000.0,0.00019861,2]
[391258150,1760443847859,-322.6107,0.00019861,2]
[391258151,1760443847869,-277.35679052,0.00019861,2]
[391258152,1760443847878,-747.8093786,0.00019861,2]
[391258153,1760443847888,-151.0,0.00019861,7]
[391258154,1760443847899,-151.0,0.00019861,7]
[391258155,1760443847909,-151.0,0.00019861,7]
[391258156,1760443847920,-151.0,0.00019861,7]
[391258157,1760443847931,-151.0,0.00019861,7]
[391258158,1760443847941,-151.0,0.00019861,7]
[391258159,1760443847950,-151.0,0.00019861,7]
[391258160,1760443847960,-152.515404,0.00019861,7]
[391258161,1760443847969,-151.0,0.00019861,7]
[391258162,1760443847979,-151.0,0.00019861,7]
[391258163,1760443847989,-151.0,0.00019861,7]
[391258164,1760443847998,-151.0,0.00019861,7]
[391258165,1760443848008,-151.0,0.00019861,7]
[391258166,1760443848018,-151.0,0.00019861,7]
[391258167,1760443848027,-151.0,0.00019861,7]
[391258168,1760443848037,-151.0,0.00019861,7]
[391258169,1760443848048,-151.0,0.00019861,7]
[391258170,1760443848061,-152.746893,0.00019861,7]
[391258171,1760443848074,-151.0,0.00019861,7]
[391258172,1760443848084,-151.0,0.00019861,7]
[391258173,1760443848094,-151.0,0.00019861,7]
[391258174,1760443848104,-151.0,0.00019861,7]
[391258175,1760443848114,-151.0,0.00019861,7]
[391258176,1760443848125,-783.1111062,0.00019873,2]
[391258177,1760443848136,-198.91677526,0.00019892,2]
[391258178,1760443848146,-255.953151,0.00019897,2]
[391258179,1760443848156,-3999.95,0.00019899,2]
[391258180,1760443848166,-181.35668356,0.00019899,2]
[391258181,1760443848175,-448.09480576,0.000199,2]
[391258182,1760443848185,-216045.75471983,0.000199,3]
[391258183,1760443849269,-298.51436949,0.000199,3]
[391258184,1760443849282,-280.80583378,0.000199,3]
[391258185,1760443850203,-500.0,0.0001945,2]
[391258186,1760443850214,-500.0,0.00019724,2]
[391258187,1760443850224,-1599.070922,0.0001986,7]
[391258188,1760443850234,-1599.070922,0.0001986,7]
[391258189,1760443850244,-4064.13212157,0.000199,3]
[391258190,1760443850255,-711.74857027,0.000199,3]
[391258191,1760443851236,-500.0,0.00019451,2]
[391258192,1760443851248,-132.76473651,0.00019725,2]
[391258193,1760444012540,358.47,0.00027397,120]
[391258194,1760444014428,513.0,0.00027397,120]
[391258195,1760444110705,337.0,0.00027397,120]
[391258197,1760444142832,1000.0,0.00027397,120]
[391258198,1760444145810,453.0,0.00027397,120]
[391258199,1760444157483,500.0,0.00027397,120]
[391258200,1760444194303,302.0,0.00027397,120]
[391258202,1760444376986,150.0,0.00018624,120]
[391258203,1760444408911,307.0,0.00027397,120]
[391258206,1760444719428,10450.35548076,9e-05,2]
[391258207,1760444726372,650.500109,0.000108,2]
[391258208,1760444732068,1020.5306819,0.0002,120]
[391258209,1760444737169,5360.14035359,9e-05,2]
[391258210,1760444762480,8560.55498335,8e-05,2]
[391258211,1760444766622,4699.51759222,0.00011,2]
[391258216,1760444825364,161.0,0.000273,120]
[391258217,1760444838295,160.95,0.000273,120]
[391258219,1760444866813,718.4857544,0.00027,120]
[391258221,1760444869790,858.01503978,0.00027,120]
[391258229,1760444910161,720.29369641,0.00027,120]
[391258230,1760444913568,1726.41596433,0.000246,120]
[391258231,1760444914333,900.70707974,0.000199,120]
[391258238,1760444918177,1717.94317275,0.00027,120]
[391258239,1760444919525,620.09080097,0.0001,120]
[391258240,1760444919972,444.30311018,0.00022,120]
[391258241,1760444920712,1229.4,0.00027,120]
[391258247,1760444923274,3028.31892973,0.0002739,120]
[391258248,1760444924818,214.36600647,0.00025,120]
[391258249,1760444924903,1178.2173201,0.000271,120]
[391258250,1760444926111,167.23632271,0.0002739,120]
[391258251,1760444926263,200.14026267,0.00021,120]
[391258254,1760444979989,189.0,0.00027397,120]
[391258263,1760445031958,-523.49120019,0.0001439,2]
[391258264,1760445031969,-186.87766572,0.000149,2]
[391258265,1760445031980,-320.89551635,0.000149,2]
[391258266,1760445031991,-500.40318077,0.00014973,2]
[391258267,1760445032002,-500.0,0.00014973,2]
[391258268,1760445032012,-500.0,0.00014973,2]
[391258269,1760445032023,-500.0,0.00014973,2]
[391258270,1760445032034,-1004.13099059,0.00014999,2]
[391258271,1760445032044,-500.0,0.00014999,2]
[391258272,1760445032054,-384.80411125,0.00014999,2]
[391258273,1760445032064,-421.1317773,0.00014999,2]
[391258274,1760445032073,-666.0,0.00014999,2]
[391258275,1760445032093,-20344.08727946,0.00015,2]
[391258276,1760445032104,-3084.05911885,0.00015,2]
[391258277,1760445032138,-109801.16697991,0.00015,2]
[391258278,1760445032182,-345.51780687,0.00015,2]
[391258279,1760445032211,-276.9400836,0.00015,2]
[391258280,1760445032226,-508.67861572,0.00015,2]
[391258281,1760445036189,500.0,0.00027397,120]
[391258282,1760445038025,-210.78718767,0.0001499,2]
[391258283,1760445038035,-23409.21281233,0.00015,2]
[391258284,1760445038048,-11568.47168476,0.00015,2]
[391258286,1760445038163,-299.03210269,0.00015,2]
[391258288,1760445038179,-1320.65661603,0.00015,2]
[391258291,1760445038191,-3357.02439821,0.00015,2]
[391258293,1760445038203,-4322.44282905,0.00015,2]
[391258420,1760445040400,-1023.24592403,0.00015,2]
[391258421,1760445040413,-1666.92887226,0.00015,2]
[391258422,1760445040425,-1774.27586803,0.00015,2]
[391258423,1760445040437,-2813.43770497,0.00015,2]
[391258424,1760445040451,-1263.1068,0.00015,2]
[391258425,1760445040463,-730497.49349562,0.00015,2]
[391258426,1760445040473,-500.0,0.00015,2]
[391258427,1760445040487,-70026.44119268,0.00015,2]
[391258430,1760445040547,-5630.73900001,0.00015,2]
[391258431,1760445040570,-235050.58753277,0.00015,2]
[391258440,1760445043118,-250979.71319747,0.00015,2]
[391258441,1760445043127,-16057.8234242,0.00015,2]
[391258442,1760445043137,-1000.0,0.00015521,2]
[391258443,1760445043147,-500.0,0.00015521,2]
[391258444,1760445043156,-320.89551635,0.00015667,2]
[391258445,1760445043165,-2000.0,0.00015829,2]
[391258446,1760445043175,-2955.97,0.000162,5]
[391258447,1760445043184,-2000.0,0.0001639,2]
[391258448,1760445043194,-320.89551635,0.00016433,2]
[391258449,1760445043203,-1497.0,0.00017003,2]
[391258450,1760445043213,-1716.0,0.00017037,2]
[391258451,1760445043222,-1386.0,0.00017071,2]
[391258452,1760445043232,-750.0,0.00017105,2]
[391258453,1760445043241,-1567.0,0.00017139,2]
[391258454,1760445043250,-320.89551635,0.000172,2]
[391258455,1760445043259,-1428.0,0.00017626,2]
[391258456,1760445043269,-1639.0,0.00017661,2]
[391258457,1760445043278,-279.0,0.00017697,2]
[391258458,1760445043288,-654.37918482,0.00017701,2]
[391258459,1760445043297,-381.0,0.00017732,2]
[391258460,1760445043307,-293.0,0.00017767,2]
[391258461,1760445043317,-150.0,0.00017901,2]
[391258462,1760445043327,-150.0,0.00017901,2]
[391258463,1760445043337,-654.37918473,0.00017945,2]
[391258464,1760445043347,-320.89551635,0.00017967,2]
[391258465,1760445043357,-3144.53807301,0.00018,3]
[391258466,1760445043367,-654.37918473,0.00018189,2]
[391258467,1760445043377,-654.37918473,0.00018433,2]
[391258468,1760445043389,-9999.99,0.00018433,2]
[391258469,1760445043399,-1500.0,0.00018483,2]
[391258470,1760445043408,-150.99,0.00018483,2]
[391258471,1760445043418,-2000.0,0.00018512,2]
[391258472,1760445043428,-237.31,0.00018542,2]
[391258473,1760445043438,-2000.0,0.00018562,2]
[391258474,1760445043447,-500.0,0.00018582,3]
[391258475,1760445043457,-537.24,0.00018582,2]
[391258476,1760445043466,-150.0,0.00018624,2]
[391258477,1760445043478,-654.37918473,0.00018677,2]
[391258478,1760445043488,-320.89551635,0.00018733,2]
[391258479,1760445043497,-374.64,0.00018741,2]
[391258480,1760445043507,-151.73,0.000188,2]
[391258481,1760445043517,-150.0,0.00018881,2]
[391258482,1760445043526,-336.34,0.00018886,2]
[391258483,1760445043535,-654.37918473,0.00018922,2]
[391258484,1760445043545,-160.0,0.00019,2]
[391258485,1760445043555,-160.0,0.00019,2]
[391258486,1760445043564,-265911.48772779,0.00019,2]
[391258487,1760445043635,-635.6914335,0.00019,2]
[391258488,1760445043673,-1055.54015067,0.00019,2]
[391258489,1760445046166,-411.04805496,0.000149,2]
[391258490,1760445046177,-1817.75194504,0.00019,2]
[391258491,1760445046188,-4420.78677654,0.00019,2]
[391258492,1760445046277,-2188.6,0.00019,2]
[391258493,1760445046289,-1600.26,0.00019,2]
[391258495,1760445046394,-20594.45947669,0.00019,2]
[391258497,1760445111743,6362.0,0.00027397,120]
[391258498,1760445194866,500.0,0.00027397,120]
[391258499,1760445203109,2000.0,0.00027397,120]
[391258500,1760445217402,265.58,8.982e-05,2]
[391258501,1760445217601,265.58,9.454e-05,2]
[391258502,1760445217847,109.69340946,9.927e-05,2]
[391258503,1760445217873,155.88659054,9.927e-05,2]
[391258504,1760445218057,265.58,0.000104,2]
[391258505,1760445218272,265.58,0.00010872,2]
[391258506,1760445218577,265.58,0.00011345,2]
[391258507,1760445218708,500.0,0.00027397,120]
[391258508,1760445219216,265.58,0.00011818,2]
[391258509,1760445219312,265.58,0.0001229,2]
[391258510,1760445229456,500.0,0.00027397,120]
[391258511,1760445280667,2000.0,0.00027,120]
[391258512,1760445282943,165.36632064,0.00027397,120]
[391258513,1760445309108,307.0,0.00027397,120]
[391258514,1760445359272,3005.0265972,0.00027,120]
[391258515,1760445364206,800.0,0.00027397,120]
[391258516,1760445364412,1000.0,0.00027397,120]
[391258517,1760445367827,1390.35986758,0.00027397,120]
[391258518,1760445396978,5305.6308946,0.00027397,120]
[391258519,1760445404573,1000.0,0.00027397,120]
[391258520,1760445408830,416.0,0.0002609,120]
[391258521,1760445409210,416.0,0.0002608,120]
[391258522,1760445409682,416.0,0.0002607,120]
[391258523,1760445410344,416.0,0.0002609,120]
[391258524,1760445410809,416.0,0.0002608,120]
[391258525,1760445411283,416.0,0.0002607,120]
[391258526,1760445412051,416.0,0.0002609,120]
[391258527,1760445412244,416.0,0.0002608,120]
[391258528,1760445412659,416.0,0.0002609,120]
[391258529,1760445413130,425.01,0.0002608,120]
[391258530,1760445423380,800.0,0.00027397,120]
[391258536,1760445451454,5305.63089461,0.00027397,120]
[391258537,1760445451756,1000.0,0.00027397,120]
[391258538,1760445462540,1403.62874,0.0002739,120]
[391258539,1760445490890,800.0,0.00027397,120]
[391258540,1760445499592,1000.0,0.00027397,120]
[391258541,1760445501401,-265.58,0.00012763,2]
[391258542,1760445501424,-521.5972768,0.00013,2]
[391258543,1760445503856,-312.76382331,0.00013,2]
[391258544,1760445508275,-246.6230309,0.00013,2]
[391258545,1760445510326,-326.78470105,0.00013,2]
[391258546,1760445512983,-391.51465291,0.00013,2]
[391258547,1760445513009,-5.7628049,0.00013236,2]
[391258548,1760445531428,-183.80817017,0.00013236,2]
[391258549,1760445546319,1000.0,0.00027397,120]
[391258550,1760445552917,205.72,0.00027397,120]
[391258551,1760445563260,1928.43,0.00027397,120]
[391258552,1760445563490,1928.43,0.00027397,120]
[391258553,1760445563709,1928.43,0.00027397,120]
[391258554,1760445563971,1928.43,0.00027397,120]
[391258555,1760445564642,1928.43,0.00027397,120]
[391258556,1760445564703,1928.43,0.00027397,120]
[391258557,1760445564773,1928.43,0.00027397,120]
[391258558,1760445564880,1928.43,0.00027397,120]
[391258559,1760445565113,1928.43,0.00027397,120]
[391258560,1760445565336,1928.43,0.00027397,120]
[391258561,1760445565591,1928.43,0.00027397,120]
[391258562,1760445565818,1928.43,0.00027397,120]
[391258563,1760445566088,1928.43,0.00027397,120]
[391258564,1760445566344,1928.43,0.00027397,120]
[391258565,1760445566600,1928.43,0.00027397,120]
[391258566,1760445566865,1928.43,0.00027397,120]
[391258567,1760445567139,1928.43,0.00027397,120]
[391258568,1760445567372,1928.43,0.00027397,120]
[391258569,1760445567770,1928.43,0.00027397,120]
[391258570,1760445568109,1928.43,0.00027397,120]
[391258571,1760445568367,1928.43,0.00027397,120]
[391258572,1760445568538,1928.43,0.00027397,120]
[391258573,1760445568772,1928.43,0.00027397,120]
[391258574,1760445569003,1928.59613629,0.00027397,120]
[391258575,1760445592962,1000.0,0.00027397,120]
[391258576,1760445595238,300.0,0.00027397,120]
[391258577,1760445635402,454.07803979,0.00027397,120]
[391258578,1760445637246,317.20390199,0.00027397,120]
[391258579,1760445637738,310.3601951,0.00027397,120]
[391258580,1760445638774,310.01800975,0.00027397,120]
[391258581,1760445640065,1010.55734284,0.00027397,120]
[391258582,1760445640318,310.00090049,0.00027397,120]
[391258583,1760445659280,500.0,0.00027397,120]
[391258584,1760445765975,1863.0,0.00027397,120]
[391258585,1760445782990,1600.0,0.00025422,120]
[391258586,1760445795539,500.0,0.00027397,120]
[391258587,1760445803913,2000.0,0.00027397,120]
[391258588,1760445829138,500.0,0.00027397,120]
[391258589,1760445838182,500.0,0.00027397,120]
[391258590,1760445839892,3000.0,0.00027397,120]
[391258591,1760445845967,3000.0,0.00027397,120]
[391258592,1760445851923,150.0,0.00026027,120]
[391258593,1760445851982,3000.0,0.00027397,120]
[391258594,1760445852131,150.0,0.00026027,120]
[391258595,1760445852312,150.0,0.00026027,120]
[391258596,1760445852473,150.0,0.00026027,120]
[391258597,1760445852671,151.65324234,0.00026027,120]
[391258598,1760445858792,3000.0,0.00027397,120]
[391258599,1760445864306,3000.0,0.00027397,120]
[391258600,1760445870860,3000.0,0.00027397,120]
[391258601,1760445877311,3000.0,0.00027397,120]
[391258602,1760445884044,10000.0,0.00027397,120]
[391258603,1760445884836,3000.0,0.00027397,120]
[391258604,1760445893335,3000.0,0.00027397,120]
[391258605,1760445899439,3000.0,0.00027397,120]
[391258606,1760445903801,655.40791638,0.0001373,5]
[391258607,1760445905860,3000.0,0.00027397,120]
[391258608,1760445906719,300.0,0.00027397,120]
[391258609,1760445912984,3000.0,0.00027397,120]
[391258610,1760445919222,3000.0,0.00027397,120]
[391258611,1760445925423,3000.0,0.00027397,120]
[391258612,1760445933281,3000.0,0.00027397,120]
[391258613,1760445942232,3000.0,0.00027397,120]
[391258615,1760445948129,3000.0,0.00027397,120]
[391258616,1760445954195,3000.0,0.00027397,120]
[391258617,1760445960248,3000.0,0.00027397,120]
[391258619,1760445968934,500.0,0.00027397,120]
[391258620,1760445968978,3000.0,0.00027397,120]
[391258621,1760445975847,3000.0,0.00027397,120]
[391258622,1760445981219,-76.00902493,0.00013236,2]
[391258623,1760445981239,-151.0,0.00013236,2]
[391258624,1760445981260,-147.93457022,0.00013236,2]
[391258625,1760445981766,3000.0,0.00027397,120]
[391258626,1760445983242,-3.06542978,0.00013236,2]
[391258627,1760445983275,-151.0,0.00013236,2]
[391258628,1760445983300,-22.68409066,0.00013236,2]
[391258629,1760445988283,-128.31590934,0.00013236,2]
[391258630,1760445988305,-115.05523788,0.00013236,2]
[391258631,1760445988339,3000.0,0.00027397,120]
[391258633,1760445993808,1000.0,0.00027397,120]
[391258634,1760445994082,1000.0,0.00027397,120]
[391258635,1760445994336,1000.0,0.00027397,120]
[391258636,1760445994852,1000.0,0.00027397,120]
[391258637,1760445995065,1000.0,0.00027397,120]
[391258638,1760445995232,1000.0,0.00027397,120]
[391258639,1760445995264,3000.0,0.00027397,120]
[391258640,1760445995415,1000.0,0.00027397,120]
[391258641,1760445995553,1002.25337934,0.00027397,120]
[391258649,1760446041846,200.0,0.00027397,120]
[391258650,1760446042575,287.0,0.00027261,120]
[391258660,1760446203106,655.40791638,0.0001373,5]
[391258661,1760446217461,300.0,0.00027397,120]
[391258668,1760446232188,-355.95,0.00013699,2]
[391258670,1760446232198,-265.58,0.00013709,2]
[391258671,1760446232207,-265.58,0.00014181,2]
[391258672,1760446232216,-2000.0,0.0001456,2]
[391258673,1760446232226,-150.0,0.0001456,2]
[391258674,1760446232235,-265.58,0.00014654,2]
[391258675,1760446232244,-265.58,0.00015127,2]
[391258676,1760446232253,-500.0,0.00015315,2]
[391258677,1760446232263,-265.58,0.00015599,2]
[391258678,1760446232272,-411.04805492,0.0001605,2]
[391258679,1760446232281,-1200.0,0.00016061,2]
[391258680,1760446232290,-687.0,0.00016062,2]
[391258681,1760446232299,-150.0,0.00016062,2]
[391258682,1760446232309,-205.73527784,0.00016063,2]
[391258683,1760446232318,-200.0,0.00016063,2]
[391258684,1760446232327,-151.0,0.00016063,2]
[391258685,1760446232336,-151.0,0.00016063,2]
[391258686,1760446232348,-151.0,0.00016063,2]
[391258687,1760446232358,-151.0,0.00016063,2]
[391258688,1760446232367,-200.0,0.00016063,2]
[391258689,1760446232377,-151.0,0.00016063,2]
[391258690,1760446232386,-151.0,0.00016063,2]
[391258691,1760446232402,-151.0,0.00016063,2]
[391258692,1760446232412,-151.0,0.00016063,2]
[391258693,1760446232421,-151.0,0.00016063,2]
[391258694,1760446232430,-151.0,0.00016063,2]
[391258695,1760446232439,-151.0,0.00016063,2]
[391258696,1760446232449,-151.0,0.00016063,2]
[391258697,1760446232459,-151.0,0.00016063,2]
[391258698,1760446232468,-151.0,0.00016063,2]
[391258699,1760446232477,-151.0,0.00016063,2]
[391258700,1760446232486,-151.0,0.00016063,2]
[391258701,1760446232496,-151.0,0.00016063,2]
[391258702,1760446232505,-151.0,0.00016063,2]
[391258703,1760446232514,-151.0,0.00016063,2]
[391258704,1760446232524,-151.0,0.00016063,2]
[391258705,1760446232533,-151.0,0.00016063,2]
[391258706,1760446232542,-151.0,0.00016063,2]
[391258708,1760446232551,-151.0,0.00016063,2]
[391258710,1760446232561,-151.0,0.00016063,2]